Cogmind - Beta 15 @@@ ROGUE MODE // 2025.08.04 @ 16:17:24 Player: OoferDoofums Result: Destroyed by UU-URD(g) with Beamcaster Performance ------------- Evolutions (0) 0 Regions Visited (3) 600 Robots Destroyed (4) 20 Value Destroyed (192) 192 Prototype IDs (6) 120 Alien Tech Used (0) 0 Bonus (790) 790 TOTAL SCORE: 1722 Bonus ------- Registered with UFD 300 Met Optimus in HQ 500 Friendly Fire -10 Cogmind --------- Core Integrity 0/250 Matter 297/300 Energy 217/275 System Corruption 0% Temperature Cool (11) Movement Walking (90) Location -9/Scraptown Parts ------- > --- POWER (1) -------- Deuterium Engine > --- PROPULSION (2) --- Improved VSS Leg Improved VSS Leg > --- UTILITY (2) ------ Small Storage Unit Makeshift Salvage Targeting Computer > --- WEAPON (2) ------- Bolt Gun > --- INVENTORY (8) ---- Carbon-fiber Leg Scrap Suit Advanced Cooling System Structural Scanner Makeshift Light Armor Plating Ripteeth Makeshift Spear Peak State ------------ > --- POWER ------------ Deuterium Engine > --- PROPULSION ------- Improved VSS Leg Improved VSS Leg > --- UTILITY ---------- Small Storage Unit Makeshift Salvage Targeting Computer > --- WEAPON ----------- Bolt Gun Bolt Gun > --- INVENTORY -------- Carbon-fiber Leg Scrap Suit Advanced Cooling System Structural Scanner Makeshift Light Armor Plating Ripteeth Makeshift Spear [Rating: 23] Favorites ----------- Power Ion Engine Engine Ion Engine Propulsion Aluminum Leg Leg Aluminum Leg Utility Structural Scanner Device Structural Scanner Storage Small Storage Unit Processor Makeshift Salvage Targeting Computer Weapon Assault Rifle Ballistic Gun Assault Rifle Build | -11 -10 -10 -9 ------- Run | Yrd Mat Sub Scr Slots Evolved . | . . . . Power . | . . . . Propulsion . | . . . . Utility . | . . . . Weapon . | . . . . Parts Attached 21 | 6 2 1 12 Power 3 | 1 . . 2 Engine 3 | 1 . . 2 Core . | . . . . Reactor . | . . . . Propulsion 8 | 2 . . 6 Treads . | . . . . Leg 8 | 2 . . 6 Wheel . | . . . . Hover . | . . . . Flight . | . . . . Utility 6 | 1 2 1 2 Device 3 | . 2 1 . Storage 2 | 1 . . 1 Processor 1 | . . . 1 Hackware . | . . . . Protection . | . . . . Artifact . | . . . . Weapon 4 | 2 . . 2 Energy Gun . | . . . . Energy Cannon . | . . . . Ballistic Gun 4 | 2 . . 2 Ballistic Cannon . | . . . . Launcher . | . . . . Special Weapon . | . . . . Impact Weapon . | . . . . Slashing Weapon . | . . . . Piercing Weapon . | . . . . Special Melee Weapon . | . . . . Unidentified Prototypes . | . . . . Parts Lost 6 | . . . 6 Power 1 | . . . 1 Propulsion 1 | . . . 1 Utility 1 | . . . 1 Weapon 3 | . . . 3 Highest Loss Streak 6 | . . . 6 To Critical Strikes . | . . . . Average Backups 4 | . 1 2 4 Power . | . 1 1 . Propulsion . | . . . . Utility 1 | . . 1 2 Weapon . | . . . . Tool/Special . | . . . . Unused Backups 8 | . . . 8 Power 1 | . . . 1 Propulsion 1 | . . . 1 Utility 3 | . . . 3 Weapon 1 | . . . 1 Tool/Special 2 | . . . 2 Average Slot Usage (%) 99 | . 94 100 99 Engine 13 | . 14 14 13 Leg 27 | . 28 28 27 Device 26 | . 22 28 26 Ballistic Gun 27 | . 28 28 27 Peak Build Rating 23 | 6 9 9 23 Average Rating 8 | 4 8 7 9 On Entrance 5 | . 5 9 7 Naked Turns . | . . . . Heaviest Build 20 | 14 11 11 20 Greatest Support 38 | 20 20 20 38 Greatest Overweight (x) 2 | 1 . . 2 Average Overweight (x) . | . . . . Largest Inventory Capacity 8 | 8 5 5 8 Average Capacity 5 | 6 5 5 5 Most Carried 8 | 1 2 3 8 Average Carried 4 | . 1 2 5 Final Capacity 8 | 5 5 5 8 Final Carried 8 | 1 2 3 8 Class Distribution -------------------- 97% | Mutant Dominant Class ---------------- Mutant | -10/Materials Mutant | -10/Subcaves Mutant | -9/Scraptown Resources | -11 -10 -10 -9 ----------- Run | Yrd Mat Sub Scr Matter Collected 524 | 254 26 22 222 Remotely . | . . . . Salvage Created 275 | . . . 275 Parts 15 | . . . 15 Haulers Intercepted . | . . . . Recyclers Shooed . | . . . . Parts Field Recycled . | . . . . Retrieved Matter . | . . . . Parts Self-Destructed 8 | . . 8 . Prevented . | . . . . Kills | -11 -10 -10 -9 ------- Run | Yrd Mat Sub Scr Combat Hostiles Destroyed 4 | . . . 4 Guns 4 | . . . 4 Classes Destroyed 2 | . . . 2 Ranger 1 | . . . 1 Scrapper 3 | . . . 3 Best Kill Streak 3 | . . . 3 Combat Bots Only 3 | . . . 3 Max Kills in Single Turn 1 | . . . 1 Gunslinging . | . . . . Exploded . | . . . . Melee . | . . . . Uniques/NPCs Destroyed . | . . . . Combat | -11 -10 -10 -9 -------- Run | Yrd Mat Sub Scr Hostile Shots Fired 70 | . . . 70 Missed 16 | . . . 16 Hits 54 | . . . 54 Projectile 54 | . . . 54 Critical Strikes 1 | . . . 1 Damage Taken 1026 | . . . 1026 Core 269 | . . . 269 Absorbed by Shields . | . . . . Core Remaining (%) 100 | 100 . . . Volleys Fired 29 | . 1 1 27 Largest 2 | . 2 2 2 Hottest 40 | . 40 40 40 Shots Fired 48 | . 2 2 44 Gun 48 | . 2 2 44 Cannon . | . . . . Launcher . | . . . . Special . | . . . . Kinetic 48 | . 2 2 44 Thermal . | . . . . Explosive . | . . . . Electromagnetic . | . . . . Robot Hit Streak 10 | . . 1 10 Robot Miss Streak 4 | . 2 1 4 Penetration Max . | . . . . Secondary Targets 1 | . . . 1 Max Gunslinging Chain 1 | . . . 1 Shots Hit Robots 27 | . . 1 26 Core Hits 14 | . . . 14 Critical Kills . | . . . . Critical Parts Destroyed . | . . . . Critical Strikes . | . . . . Melee Attacks . | . . . . Impact . | . . . . Slashing . | . . . . Piercing . | . . . . Sneak Attacks . | . . . . Combat Hostiles . | . . . . Follow-up Attacks . | . . . . Damage Inflicted 331 | . 10 13 308 Guns 331 | . 10 13 308 Cannons . | . . . . Explosions . | . . . . Melee . | . . . . Ramming . | . . . . Kinetic 331 | . 10 13 308 Thermal . | . . . . Explosive . | . . . . Electromagnetic . | . . . . Impact . | . . . . Slashing . | . . . . Piercing . | . . . . Highest Corruption . | . . . . Average Corruption . | . . . . Corruption Purged . | . . . . Corruption Blocked . | . . . . Overload Shots . | . . . . Overflow Damage . | . . . . Projectiles . | . . . . Explosions . | . . . . Melee . | . . . . Knockbacks . | . . . . Impact . | . . . . Kinetic . | . . . . Secondary . | . . . . Self-Inflicted Damage . | . . . . Shots . | . . . . Rammed . | . . . . Targets Rammed . | . . . . Kicked . | . . . . Crushed . | . . . . Highest Temperature 57 | . . . 57 Average Temperature 15 | . . . 15 Received Heat Transfer 520 | . . . 520 Siege Activations . | . . . . Martial Activations . | . . . . Shielding Activations . | . . . . Robots Disrupted . | . . . . Combat Hostiles . | . . . . Robots Corrupted . | . . . . Combat Hostiles . | . . . . Parts Fried . | . . . . Impact Corruptions . | . . . . Robots Melted . | . . . . Combat Hostiles . | . . . . Parts Melted 5 | . . . 5 Heat Transferred . | . . . . Parts Sabotaged . | . . . . Parts Stolen . | . . . . Parts Stripped . | . . . . Power Chain Reactions . | . . . . Alert | -11 -10 -10 -9 ------- Run | Yrd Mat Sub Scr Maximum Alert Level . | . . . . Low Security (%) 100 | 100 100 . . Level 1 . | . . . . Level 2 . | . . . . Level 3 . | . . . . Level 4 . | . . . . Level 5 . | . . . . High Security . | . . . . Max Security . | . . . . Peak Influence . | . . . . Initial . | . . . . Average . | . . . . Influence Increases . | . . . . Influence Decreases . | . . . . Squads Dispatched 1 | . 1 . . Investigation . | . . . . Extermination . | . . . . Reinforcement 1 | . 1 . . Assault . | . . . . Garrison . | . . . . Intercept . | . . . . Searches Triggered . | . . . . Construction Impeded . | . . . . Haulers Reinforced . | . . . . Active Scanning Responses . | . . . . Cargo Convoy Interrupts . | . . . . Stealth | -11 -10 -10 -9 --------- Run | Yrd Mat Sub Scr Distress Signals . | . . . . Communications Jammed . | . . . . Distress Signals . | . . . . Times Spotted 23 | . 1 4 18 Peak Tracking Total 4 | . 1 2 4 Tactical Retreats . | . . . . Traps | -11 -10 -10 -9 ------- Run | Yrd Mat Sub Scr Traps Triggered . | . . . . Indirectly . | . . . . Trap Hack Attempts . | . . . . Triggered . | . . . . Disarmed . | . . . . Reprogrammed . | . . . . Reused . | . . . . Traps Extracted . | . . . . Installed . | . . . . Triggered . | . . . . Machines | -11 -10 -10 -9 ---------- Run | Yrd Mat Sub Scr Machines Disabled . | . . . . Max in Single Turn . | . . . . Machines Repaired . | . . . . Machines Dismantled . | . . . . Machines Sabotaged . | . . . . Overloaded Fab Kills . | . . . . Hacking | -11 -10 -10 -9 --------- Run | Yrd Mat Sub Scr Machines Accessed 12 | . 1 . 11 Terminals 1 | . 1 . . Fabricators . | . . . . Repair Stations . | . . . . Recycling Units . | . . . . Scanalyzers . | . . . . Garrison Access . | . . . . Total Hacks 80 | . 2 . 78 Successful 78 | . . . 78 Failed 2 | . 2 . . Catastrophic . | . . . . Database Lockouts . | . . . . Manual . | . . . . Terminals 2 | . 2 . . Fabricators . | . . . . Repair Stations . | . . . . Recycling Units . | . . . . Scanalyzers . | . . . . Garrison Access . | . . . . Terminal Hacks 78 | . . . 78 Record 71 | . . . 71 Robot Analysis 6 | . . . 6 Proto ID Catalog 1 | . . . 1 Fabricator Hacks . | . . . . Repair Station Hacks . | . . . . Recycling Unit Hacks . | . . . . Scanalyzer . | . . . . Garrison Access Hacks . | . . . . Unauthorized Hacks . | . . . . Terminals . | . . . . Fabricators . | . . . . Repair Stations . | . . . . Recycling Units . | . . . . Scanalyzers . | . . . . Garrison Access . | . . . . Data Cores Recovered . | . . . . Used . | . . . . Hacking Detections 1 | . 1 . . Full Trace Events . | . . . . Feedback Events . | . . . . Feedback Blocked . | . . . . Robot Schematics Acquired . | . . . . Robots Built . | . . . . Authchips . | . . . . Time . | . . . . Total Robot Build Rating . | . . . . Part Schematics Acquired . | . . . . Parts Built . | . . . . Authchips . | . . . . Time . | . . . . Total Part Build Rating . | . . . . Parts Repaired . | . . . . Time . | . . . . Parts Recycled . | . . . . Recycled Matter . | . . . . Retrieved Matter . | . . . . Retrieved Components . | . . . . Parts Scanalyzed . | . . . . Part Schematics Acquired . | . . . . Parts Damaged . | . . . . Bothacking | -11 -10 -10 -9 ------------ Run | Yrd Mat Sub Scr Used RIF Installer . | . . . . Robots Hacked . | . . . . Non-combat . | . . . . Combat . | . . . . Robot Hacks Applied . | . . . . Relay Couplers Released . | . . . . Fabnet Peak Effective % . | . . . . Robots Rewired . | . . . . Allies Hacked . | . . . . Hacks Repelled . | . . . . Allies | -11 -10 -10 -9 -------- Run | Yrd Mat Sub Scr Total Allies . | . . . . Largest Group . | . . . . Highest-Rated Group . | . . . . Highest-Rated Ally . | . . . . Total Orders . | . . . . Ally Attacks . | . . . . Total Damage . | . . . . Kills . | . . . . Allies Corrupted . | . . . . Allies Melted 5 | . . . 5 Intel | -11 -10 -10 -9 ------- Run | Yrd Mat Sub Scr Active Infowar (turns) 2442 | . 168 273 2001 Structural 2359 | . 168 273 1918 Seismic 2238 | . . 237 2001 Robot Analysis Total 6 | . . . 6 Derelict Logs Recovered 1 | . . 1 . Drone Launches . | . . . . Drone Recoveries . | . . . . Exploration | -11 -10 -10 -9 ------------- Run | Yrd Mat Sub Scr Turns Passed 2625 | 72 213 273 2067 Spaces Moved 1761 | 58 114 185 1404 Core 12 | 11 . . 1 Treads . | . . . . Legs 1749 | 47 114 185 1403 Wheels . | . . . . Hover . | . . . . Flight . | . . . . Fastest Speed 50 | 50 120 120 90 Average Speed 134 | 107 120 120 139 Slowest Speed 190 | 120 120 120 190 Overloaded Moves . | . . . . Propulsion Burnouts . | . . . . Robots Hopped . | . . . . Potential Cave-ins . | . . . . Cave-ins Triggered . | . . . . Exploration Rate (%) 31 | 3 24 14 86 Regions Visited 3 Branch Regions 2 Pre-discovered Areas 1 | . . 1 . Known Exits Taken . | . . . . Unknown Exits Taken 3 | 1 1 1 . Scrap Searched 8 | . . . 8 Spaces Dug . | . . . . Terrain Destroyed . | . . . . Melee . | . . . . Projectile . | . . . . AOE . | . . . . Terrain Rammed . | . . . . Walls Destroyed . | . . . . Machines Disabled . | . . . . Actions | -11 -10 -10 -9 --------- Run | Yrd Mat Sub Scr Total 1966 | 65 187 234 1480 Wait 124 | . 70 46 8 Move 1758 | 57 113 184 1404 Hop . | . . . . Pick Up 16 | 1 1 1 13 Fast Attach 13 | 6 2 . 5 Attach 4 | . . 1 3 Detach 1 | . . 1 . Swap 6 | . . . 6 Drop 15 | 1 . . 14 Fire 29 | . 1 1 27 Melee . | . . . . Ram . | . . . . Kick . | . . . . Crush . | . . . . Escape Stasis . | . . . . Rewire . | . . . . Trap . | . . . . Miscellaneous . | . . . . Route ------- -11/Scrapyard -10/Materials (discovered 2 exits: [*Mat] / [*Sub]) -10/Subcaves (discovered 2 exits: [*Mat] / *Scr) -9/Scraptown (discovered 2 exits: [*Fac x2]) History --------- Turn | Location | Event 10 | -11/Scrapyard | Discovered new exit (range 15) 73 | -11/Scrapyard | Entered Materials 74 | -10/Materials | Met a group of wandering Federalists 232 | -10/Materials | Discovered new exit (range 15) 246 | -10/Materials | Discovered new exit (range 10) 286 | -10/Materials | Entered Subcaves 287 | -10/Subcaves | Continued accompanying wandering Federalists (6) 287 | -10/Subcaves | Approached by a straggling Scientist 310 | -10/Subcaves | Build established: Mutant 356 | -10/Subcaves | Discovered new exit (range 10) 375 | -10/Subcaves | Lost 5 allies 489 | -10/Subcaves | A swath of the cavern ceiling suddenly collapsed 547 | -10/Subcaves | Wandering Federalist uncovered a shortcut to Scraptown 559 | -10/Subcaves | Entered Scraptown 845 | -9/Scraptown | Discovered new exit (range 5) 969 | -9/Scraptown | Visited Bundlers 1048 | -9/Scraptown | Visited Cyclists 1109 | -9/Scraptown | Visited Symbiants 1146 | -9/Scraptown | Visited TADAMA 1173 | -9/Scraptown | Visited UFD Registry 1179 | -9/Scraptown | Registered with UFD as "Bladeripper" 1207 | -9/Scraptown | Visited IN-MT5's Study 1230 | -9/Scraptown | Visited SPCMW 1308 | -9/Scraptown | Heard Great Nut preacher, LISTEN AND RECITE! 1329 | -9/Scraptown | Entered Cyclist Reading Room 1639 | -9/Scraptown | Visited Modified Component R&D 1708 | -9/Scraptown | Visited Science Guys 1786 | -9/Scraptown | Visited Abandonware Association 1805 | -9/Scraptown | Learned abandonware demo "SHUTEYE.EXE" 1805 | -9/Scraptown | Learned abandonware demo "POISON.EXE" 1884 | -9/Scraptown | Found Scrap Suit 1968 | -9/Scraptown | Discovered new exit (range 3) 2025 | -9/Scraptown | Visited Cartography Club 2099 | -9/Scraptown | Visited Observation Area 2172 | -9/Scraptown | Visited Analyses Database 2305 | -9/Scraptown | Met Optimus 2305 | -9/Scraptown | Accepted into 0bPrime 2433 | -9/Scraptown | Civil war broke out across Scraptown 2484 | -9/Scraptown | Lost 3 allies 2547 | -9/Scraptown | Lost 3 allies 2588 | -9/Scraptown | Core integrity fell below 50% 2594 | -9/Scraptown | Core integrity fell below 20% 2623 | -9/Scraptown | Lost 3 allies 2626 | -9/Scraptown | Destroyed by UU-URD(g) with Beamcaster Last Messages --------------- Acquired Bolt Gun. Acquired 10 matter. Ovr. Titanium Leg destroyed. Ovr. Titanium Leg recovered from malfunction. SA-CXL(j) heat damages Scrap Suit. SA-CXL(j) destroyed. Dropped Ovr. Titanium Leg. J9-CK7(j): "Stop this nonsense!" Acquired 40 matter. 1Z-T2N(x) destroyed. Acquired Mak. Light Armor Plating. Acquired Carbon-fiber Leg. Acquired Mak. Spear. Bolt penetrates Wall. J9-CK7(j) destroyed. Bolt penetrates 2V-ATP(j). Bolt Gun destroyed. Bolt penetrates 2V-ATP(j). 2V-ATP(j) destroyed. Bolt penetrates UU-URD(g). Map ----- +----------------------------------------------------+ | | | | | | | | | | | ?????????????????????????????????????????????????? | | ?????????????????????????????????????????????????? | | ?????????????????????????????????????????????????? | | ?????????????????????????????????????????????????? | | ?????????????????????????????????????????????????? | | ?????????????????????????????????????????????????? | | ?????????????????????????????????????????????????? | | ?????????????????????????????????????????????????? | | ?????????????????????????????????????????????????? | | ?????????????????????????????????????????????????? | | ????????????????????????????????#######??????????? | | ????????????????????????????????#######??????????? | | ?#####################?######???##"""##??????????? | | ##############################??##" "##??????????? | | ##"""##"""##""|##"""#####=%####### < ###?????????? | | ##"" ##""!##""|##! "####!=![###### ###?????????? | | ##"" | *=![[%=g ##?????????? | | ## | [!=!g! ##?????????? | | ########################%!%!############?????????? | | #########################*!%############?????????? | | "##############???????###@!# ???????????????????? | | "#"""""""""""############=!# ???????####?????????? | | "#""""" X """############=%# ???????### ?????????? | | "#""" """"##"""""""""#%/# ????? # # ?????????? | | "#" "/""## " " " #!=##??### ## # ?????????? | | "#""" """"## ;= ##?# ### ?????????? | | "#"""" ""## "# #" #j[## #X#### ##???????? | | ##"" &## "#X#" #!%## #?#### #####???????? | | "#"" "" "&## "###" #=!#==# # ##???????? | | #"" "" "&## """"" #%!=###### #######???????? | | # "## * #!=#[* ##???????? | | #" ## !=% #!%#= ##???????? | | ####### ###########!#####=!## ################???? | | ####### ##########%%!###![!#" ################???? | | """"""" """"""""[!!%=%""= =" "## """"""""""##???? | | =%/%[=%[=% !=* "## " "##???? | | ![=!!!*==!![ ## """""" "##???? | | =!/=!=%=% ## "????" "##???? | | =!! ! %= =["## "????" "##???? | | !!! *%=* "????" "##???? | | """"""""""""""""""" """ [%!!=!%## """""" "##???? | | """""""""""""""""""""""" =%*=%[## "##???? | | ##### ################" == [*=## """""""""##???? | | ###########" = ###############???? | | X"##??????##" "## """"#######???? | +----------------------------------------------------+ Best States ------------- Heat Dissipation 39 Energy Generation 16 Energy Capacity 290 Matter Stores 300 Matter Capacity 300 Sight Range 16 Terrain Scan Density 10 Evasion (%) 55 Salvage Targeting 4 Item Schematics ----------------- None Robot Schematics ------------------ None Fabricated ------------ Nothing Repaired ---------- Nothing Alien Tech Used ----------------- None Achievements -------------- Armchair Analyst Challenges ------------ None Game ------ Seed NanofilamentsWeaponMatrix Manual? 0 Play Time 00:37:24 Cumulative 28.4 hours Start 2025.08.04 @ 15:39:03 End 2025.08.04 @ 16:17:24 Sessions 1 Manual Loads 0 Difficulty Rogue Special Mode None Game No. 54 Rogue 54 Adventurer 0 Explorer 0 Win Type - Total 0 Types 0/0/0/0/0/0/0/0/0/0 Lore% 24 Gallery% 23 Achievement% 21 Wizard Run 0 Options --------- Layout 1 ASCII 0 Keyboard 0 Movement Mouse Keybinds 0 Fullscreen 1 Font 24/Smallcaps Map View 50x35 Zoom Use 0% Tactical HUD 0 Map Filters NONE Filters NONE Steam 1 RUN: aeb593e7-e1f2-414a-a572-53d93eecf2b1